bitfinex/quotes_ETHUSD_20251218
["timestamp","ask_amount","ask_price","bid_price","bid_amount"]
[1766071282003,0.10157612,2948.9,2948.0,0.46438023]
[1766071282319,0.10157612,2948.1,2947.2,0.001]
[1766071282612,3.7137,2947.7,2946.9,0.553]
[1766071283176,0.553,2948.0,2947.1,3.9084]
[1766071283500,0.553,2948.0,2947.1,0.001]
[1766071283501,3.7137,2947.8,2947.1,0.001]
[1766071283703,0.405504,2948.3,2947.3,3.9074]
[1766071284307,0.46438023,2948.1,2947.3,3.9074]
[1766071284606,0.46438023,2948.1,2947.1,0.001]
[1766071284607,0.405504,2947.9,2947.1,0.001]
[1766071285103,2.896704,2947.9,2947.1,0.001]
[1766071285304,2.4912,2947.8,2947.1,0.001]
[1766071285502,0.4119204,2947.7,2947.1,0.001]
[1766071286015,0.46438023,2948.2,2947.1,7.85453673]
[1766071286307,3.7137,2947.8,2947.1,0.001]
[1766071286810,1.11895635,2948.0,2947.1,0.001]
[1766071286975,0.10157612,2947.8,2947.1,0.001]
[1766071287180,2.4912,2947.0,2946.0,0.001]
[1766071287505,0.10157612,2947.2,2946.2,1.303]
[1766071287506,0.84855802,2946.9,2946.2,1.303]
[1766071287675,0.553,2947.2,2946.4,3.9074]
[1766071287886,0.553,2947.2,2946.1,0.46438023]
[1766071288194,0.10157612,2947.6,2946.7,2.6044]
[1766071288195,0.553,2947.6,2946.7,2.6044]
[1766071288399,0.553,2947.6,2946.7,3.9074]
[1766071288598,2.4912,2948.3,2946.8,1.303]
[1766071288791,7.43844138,2948.2,2946.9,2.6044]
[1766071288990,7.43844138,2948.2,2946.8,1.303]
[1766071288991,0.46438023,2948.1,2947.0,3.9074]
[1766071289603,0.405504,2948.1,2947.0,3.9074]
[1766071289907,0.553,2948.3,2947.1,0.03393166]
[1766071290113,2.4912,2949.3,2947.4,2.6044]
[1766071290304,1.2245,2949.4,2948.1,0.46438023]
[1766071290305,0.555,2949.4,2948.1,0.46438023]
[1766071290508,0.555,2949.4,2948.2,2.6044]
[1766071290720,0.555,2949.4,2948.5,1.303]
[1766071291216,0.002,2949.0,2948.5,1.303]
[1766071291682,0.002,2949.0,2948.1,0.46438023]
[1766071292126,0.002,2949.0,2947.9,1.856]
[1766071292127,3.0442,2948.9,2947.9,1.856]
[1766071292343,6.43531695,2948.9,2947.9,1.303]
[1766071292636,0.553,2948.9,2948.0,2.6044]
[1766071292937,0.0012,2949.0,2948.1,2.6044]
[1766071293091,0.0012,2949.0,2948.4,1.303]
[1766071294017,0.002,2950.7,2948.8,1.303]
[1766071294217,0.002,2950.7,2949.3,0.46438023]
[1766071294417,0.002,2950.7,2949.2,7.18700406]
[1766071294418,2.4912,2950.5,2949.2,1.303]
[1766071294620,0.37137,2950.4,2949.2,2.32038023]
[1766071294794,0.37137,2950.4,2949.2,1.01738023]
[1766071294995,0.555,2950.7,2949.4,0.46438023]
[1766071295198,0.555,2950.7,2949.7,1.303]
[1766071295420,0.555,2950.7,2949.8,1.303]
[1766071296090,0.002,2951.3,2949.8,0.405504]
[1766071296286,0.002,2951.6,2950.8,2.6044]
[1766071296489,0.002,2951.6,2950.1,3.3897156]
[1766071296490,0.002,2951.6,2950.6,0.553]
[1766071296689,0.002,2951.6,2950.7,3.9074]
[1766071296889,0.002,2951.7,2951.1,1.303]
[1766071297109,0.002,2951.7,2951.1,2.6044]
[1766071297312,0.002,2951.7,2950.6,0.553]
[1766071297313,0.002,2951.7,2950.8,3.9074]
[1766071297588,0.002,2951.7,2950.8,1.303]
[1766071297799,0.002,2951.7,2951.3,2.6044]
[1766071298003,0.002,2951.9,2951.3,3.9074]
[1766071298689,3.38665515,2952.8,2951.7,2.6044]
[1766071298889,3.38678452,2952.7,2951.8,3.9074]
[1766071299094,0.34087845,2952.5,2951.8,3.9074]
[1766071299719,6.77592797,2952.5,2951.3,0.553]
[1766071300017,3.7137,2952.1,2950.9,0.553]
[1766071300318,0.553,2952.2,2951.0,1.303]
[1766071300517,0.553,2952.2,2950.7,3.85329952]
[1766071300518,3.36108423,2952.0,2950.7,1.303]
[1766071300717,3.36108423,2952.0,2950.2,0.553]
[1766071300718,2.4912,2951.5,2950.2,0.553]
[1766071300906,0.37137,2951.4,2950.2,1.01738023]
[1766071301099,0.37137,2951.4,2950.5,1.303]
[1766071301294,0.553,2951.5,2950.5,1.303]
[1766071301497,0.553,2951.5,2950.2,3.94252993]
[1766071301498,0.553,2951.5,2950.7,1.303]
[1766071301820,3.38896081,2952.5,2951.4,2.6044]
[1766071302021,0.46438023,2952.4,2951.4,2.6044]
[1766071302192,1.02845019,2952.3,2951.5,1.303]
[1766071302519,3.94196081,2952.5,2951.6,3.7653]
[1766071302520,0.002,2952.5,2951.6,3.7653]
[1766071302718,0.002,2952.9,2951.7,0.553]
[1766071303017,0.002,2952.9,2952.0,2.4562]
[1766071303394,0.002,2952.9,2952.0,3.7653]
[1766071303631,0.10157612,2954.4,2952.3,1.3091]
[1766071303932,2.6689,2953.8,2952.5,2.4562]
[1766071304124,1.2196,2953.3,2952.1,1.01738023]
[1766071304289,3.13328023,2953.4,2952.2,0.553]
[1766071304489,1.01738023,2953.5,2952.3,1.3091]
[1766071304689,3.68628023,2953.5,2952.3,3.7653]
[1766071304915,2.6689,2953.3,2951.9,2.4562]
[1766071305117,2.6689,2953.3,2950.8,1.3091]
[1766071305118,0.46438023,2951.9,2950.8,1.3091]
[1766071305331,0.46438023,2951.9,2950.5,3.7653]
[1766071305332,2.6689,2951.7,2950.5,3.7653]
[1766071305530,3.99007612,2951.5,2950.1,2.4562]
[1766071305847,0.46438023,2951.4,2950.2,1.3091]
[1766071306039,0.553,2951.3,2950.2,1.3091]
[1766071306250,0.553,2951.3,2950.4,1.3091]
[1766071306408,0.553,2951.3,2950.1,0.46438023]
[1766071306409,3.9414318,2951.3,2950.1,0.46438023]
[1766071306604,0.553,2951.3,2950.2,2.4562]
[1766071306901,0.43402353,2951.2,2950.2,3.7653]
[1766071307323,0.553,2951.3,2950.0,1.01738023]
[1766071307538,0.553,2951.3,2950.2,2.92058023]
[1766071307838,2.6689,2952.7,2950.9,1.3091]
[1766071308149,0.553,2952.4,2951.4,3.7653]
[1766071308443,0.553,2952.4,2951.2,3.7653]
[1766071308616,0.553,2952.4,2951.5,1.3091]
[1766071308815,0.39399808,2952.3,2951.5,3.7653]
[1766071309044,2.6689,2953.4,2951.6,0.03387992]
[1766071309216,3.7750568,2953.2,2951.7,3.7653]
[1766071309417,0.38885,2953.2,2951.7,3.7653]
[1766071309736,6.70887614,2953.9,2951.8,0.86988423]
[1766071309948,1.7726,2953.9,2951.8,2.4562]
[1766071310107,0.553,2953.9,2952.5,2.4562]
[1766071310307,0.553,2953.9,2952.8,3.7653]
[1766071310530,3.84984979,2953.8,2952.8,3.7653]
[1766071310809,0.65457612,2953.9,2952.5,0.553]
[1766071310810,0.45044259,2953.7,2952.5,0.553]
[1766071311009,0.553,2953.9,2952.5,0.552]
[1766071311010,2.77047612,2953.8,2952.5,0.552]
[1766071311210,3.93837364,2953.9,2952.7,2.4562]
[1766071311414,0.553,2953.9,2952.9,1.3091]
[1766071311647,0.10357612,2954.1,2953.3,1.3091]
[1766071311648,0.002,2954.1,2953.3,1.3091]
[1766071311858,0.002,2954.1,2953.3,3.7653]
[1766071312161,0.002,2954.1,2953.4,3.7653]
[1766071313106,0.002,2954.1,2953.2,0.552]
[1766071313312,0.002,2954.1,2953.3,1.3091]
[1766071313512,6.76828386,2955.0,2953.7,3.7653]
[1766071313750,3.48559068,2955.1,2953.1,0.552]
[1766071313751,3.48556564,2955.1,2953.9,1.3091]
[1766071313932,10.75805516,2955.1,2953.9,2.4562]
[1766071314129,1.01638023,2955.0,2953.9,2.4562]
[1766071314313,1.17744354,2954.9,2954.0,1.3091]
[1766071314515,3.3841107,2955.0,2953.6,0.552]
[1766071314714,0.10157612,2955.5,2953.6,0.552]
[1766071314715,3.48429718,2956.2,2954.1,0.46438023]
[1766071314944,1.2196,2955.7,2954.4,2.4562]
[1766071315110,3.8885,2955.6,2954.3,1.3091]
[1766071315316,0.552,2956.1,2954.6,1.3091]
[1766071315613,0.552,2956.1,2955.0,1.3091]
[1766071315817,1.2196,2955.9,2954.6,0.552]
[1766071316026,2.6689,2955.8,2954.6,0.552]
[1766071316230,2.6689,2955.8,2954.5,2.4562]
[1766071316231,0.83284635,2955.7,2954.5,2.4562]
[1766071316415,1.28327023,2955.7,2954.5,3.7653]
[1766071316616,0.81889,2955.7,2954.5,3.7653]
[1766071316940,4.201395,2955.7,2954.6,3.7653]
[1766071317141,0.91966612,2955.7,2954.6,3.7653]
[1766071317446,0.46438023,2955.2,2954.1,3.7653]
[1766071317743,0.65357612,2955.1,2954.1,3.7653]
[1766071318317,7.27293835,2954.7,2952.9,0.001]
[1766071318520,3.32247612,2954.6,2953.2,3.7653]
[1766071318740,0.405504,2954.3,2953.3,3.7653]
[1766071318919,0.552,2954.4,2953.4,1.3091]
[1766071319115,0.552,2954.4,2953.6,1.3091]
[1766071319338,0.97146035,2954.3,2953.1,1.3091]
[1766071319537,0.10157612,2954.1,2952.9,0.001]
[1766071319727,0.27704761,2954.0,2953.2,3.7653]
[1766071319927,1.2196,2954.5,2953.2,2.4562]
[1766071320145,3.48567087,2955.0,2953.7,2.6151]
[1766071320346,0.26609,2955.7,2954.3,2.6151]
[1766071320546,2.71777612,2955.2,2952.9,0.46538023]
[1766071320748,1.211,2954.7,2953.1,1.2944]
[1766071320935,0.10157612,2954.4,2953.3,1.2944]
[1766071321139,0.67728161,2954.3,2952.9,0.001]
[1766071321453,0.552,2954.4,2953.3,1.2944]
[1766071321614,0.552,2954.5,2953.4,3.9095]
[1766071321952,0.552,2954.7,2953.6,1.2944]
[1766071322246,0.002,2955.3,2953.7,0.552]
[1766071322546,2.71777612,2955.0,2953.7,2.6151]
[1766071322743,0.27177761,2954.9,2953.8,1.01638023]
[1766071323323,0.37335373,2954.9,2953.8,4.4017858]
[1766071323551,0.002,2955.3,2954.3,1.2944]
[1766071323745,0.554,2955.3,2954.3,1.2944]
[1766071324009,0.10157612,2955.2,2954.1,0.552]
[1766071324122,0.554,2955.3,2954.1,0.552]
[1766071324317,0.554,2955.3,2953.6,0.46438023]
[1766071324318,0.10157612,2954.8,2953.6,0.46438023]
[1766071324522,0.10157612,2954.8,2953.5,3.9095]
[1766071324523,1.16219854,2954.7,2953.5,3.9095]
[1766071324731,0.10157612,2954.4,2952.9,0.001]
[1766071324930,0.61019854,2954.7,2953.2,1.2944]
[1766071325145,0.552,2954.8,2953.4,0.46438023]
[1766071325346,0.552,2954.8,2953.6,2.6151]
[1766071325545,0.552,2954.8,2953.5,0.552]
[1766071325747,0.552,2954.8,2953.7,1.2944]
[1766071325951,0.65357612,2954.8,2953.7,3.9095]
[1766071326149,2.6162,2954.5,2953.2,3.9095]
[1766071326356,2.6162,2954.5,2953.3,4.37388023]
[1766071326357,0.49445373,2954.4,2953.3,4.37388023]
[1766071326853,0.552,2954.3,2953.3,3.9095]
[1766071327163,0.552,2954.3,2953.0,3.93830684]
[1766071327322,0.552,2954.3,2953.4,1.2944]
[1766071327519,0.552,2954.3,2953.4,3.9095]
[1766071327731,0.56595635,2954.6,2953.5,1.2944]
[1766071327932,0.10157612,2954.9,2953.9,1.2944]
[1766071328170,0.10157612,2954.9,2953.5,0.552]
[1766071328476,0.46438023,2954.7,2953.7,1.2944]
[1766071328770,2.71777612,2954.5,2953.2,1.75878023]
[1766071328979,0.552,2954.4,2953.2,1.75878023]
[1766071329180,0.10157612,2954.3,2953.2,1.2944]
[1766071329373,0.10157612,2954.3,2953.3,1.2944]
[1766071329570,0.552,2954.4,2953.3,1.2944]
[1766071329737,0.10157612,2955.2,2953.8,2.4931]
[1766071329936,0.10157612,2955.2,2953.1,1.01638023]
[1766071329937,0.552,2954.8,2954.0,2.4931]
[1766071330640,0.552,2954.9,2953.7,0.46438023]
[1766071330840,2.5602,2954.7,2953.0,3.38637508]
[1766071331040,3.91347612,2954.6,2953.3,0.46438023]
[1766071331281,0.39134761,2954.5,2953.4,0.46438023]
[1766071331576,0.552,2954.4,2953.5,0.001]
[1766071332074,0.552,2954.4,2953.5,2.4941]
[1766071332278,0.552,2954.4,2953.6,1.2829]
[1766071332769,0.552,2954.7,2954.0,1.272]
[1766071332943,0.10157612,2954.5,2953.5,0.001]
[1766071333369,0.10157612,2954.5,2953.5,3.9006]
[1766071333572,0.10157612,2954.6,2953.5,3.9006]
[1766071334376,2.54147612,2954.6,2953.5,3.9006]
[1766071334546,0.30934761,2954.5,2953.5,3.9006]
[1766071335154,0.30934761,2954.5,2953.8,1.272]
[1766071335357,3.84874675,2954.8,2953.6,0.552]
[1766071335570,0.552,2955.0,2953.8,1.272]
[1766071335770,4.63035675,2955.3,2953.9,2.6276]
[1766071335984,0.65357612,2955.2,2954.2,1.272]
[1766071336280,0.10157612,2955.1,2954.2,1.272]
[1766071336585,0.10157612,2955.1,2953.5,0.001]
[1766071336586,2.845404,2954.6,2953.5,0.001]
[1766071336890,0.552,2954.5,2953.5,1.273]
[1766071337457,0.552,2954.5,2953.8,3.8996]
[1766071338551,3.36326675,2955.1,2953.9,1.272]
[1766071338783,0.46438023,2955.0,2954.2,3.8996]
[1766071338951,0.46438023,2955.0,2953.8,4.4516]
[1766071339151,0.46438023,2955.0,2953.8,3.8996]
[1766071339388,0.46438023,2955.1,2953.8,3.38546392]
[1766071339588,0.552,2955.0,2954.1,1.272]
[1766071339789,0.65357612,2955.0,2954.0,2.6276]
[1766071339991,3.09347612,2955.0,2953.7,3.8996]
[1766071340154,3.09347612,2955.0,2953.9,1.272]
[1766071340353,3.09347612,2955.0,2953.9,3.8996]
[1766071340354,2.9919,2955.0,2953.9,3.8996]
[1766071340594,4.13876406,2955.0,2953.9,3.8996]
[1766071340754,7.52286946,2955.0,2953.9,3.8996]
[1766071341171,2.4399,2954.9,2953.9,1.272]
[1766071341365,2.4399,2954.9,2953.6,0.552]
[1766071341366,1.2446,2954.8,2953.6,0.552]
[1766071341554,3.6845,2954.8,2953.6,0.552]
[1766071341775,2.4399,2954.7,2953.6,0.552]
[1766071341980,0.56595635,2954.7,2953.6,0.552]
[1766071342161,2.4399,2954.5,2953.6,0.552]
[1766071342484,2.9919,2954.5,2953.5,0.001]
[1766071342688,6.47817321,2954.5,2953.5,1.273]
[1766071342908,2.54147612,2954.2,2953.5,0.001]
[1766071343068,2.4399,2954.2,2953.5,0.001]
[1766071343265,1.23665755,2954.4,2953.5,0.001]
[1766071343488,0.552,2954.3,2953.5,0.001]
[1766071343698,2.4399,2954.2,2953.5,0.001]
[1766071343967,1.89817612,2954.3,2953.5,0.001]
[1766071343968,0.43380761,2954.1,2953.5,0.001]
[1766071344297,0.552,2954.3,2953.5,0.001]
[1766071344502,3.93694593,2954.3,2953.5,0.001]
[1766071344703,4.2365,2954.3,2953.5,0.001]
[1766071344872,4.33807612,2954.3,2953.5,0.001]
[1766071345796,7.72299085,2954.3,2953.5,0.001]
[1766071345997,0.89596484,2954.2,2953.5,0.001]
[1766071346201,2.4399,2953.8,2952.9,0.001]
[1766071346400,0.552,2953.7,2952.9,0.001]
[1766071346701,2.9919,2953.7,2952.9,0.001]
[1766071347092,0.552,2953.7,2952.9,0.001]
[1766071347287,0.89596484,2954.2,2952.9,0.42492501]
[1766071347486,0.552,2953.8,2953.1,3.8996]
[1766071347692,0.552,2954.2,2953.3,3.8996]
[1766071347998,0.552,2954.2,2952.9,0.553]
[1766071347999,0.77227732,2954.4,2953.6,1.272]
[1766071348300,2.4399,2954.9,2953.7,2.6276]
[1766071348301,0.10157612,2954.8,2953.7,2.6276]
[1766071348511,0.552,2955.0,2954.1,3.8996]
[1766071349211,0.552,2955.0,2954.2,2.6276]
[1766071349503,2.4399,2955.1,2954.1,0.552]
[1766071349672,0.24399,2955.0,2954.1,0.552]
[1766071349872,0.552,2954.9,2953.8,3.8996]
[1766071350084,0.10157612,2954.8,2953.8,3.8996]
[1766071350306,2.9919,2954.9,2953.8,3.8996]
[1766071350715,0.10157612,2954.6,2953.1,6.29855732]
[1766071350904,2.54147612,2954.4,2953.1,4.4516]
[1766071351098,0.552,2954.3,2953.2,2.6276]
[1766071351275,0.552,2954.3,2953.4,1.272]
[1766071351595,2.54147612,2953.7,2952.9,0.001]
[1766071351800,0.552,2953.6,2952.9,0.001]
[1766071352775,0.552,2954.1,2952.9,0.001]
[1766071352978,0.552,2954.1,2953.3,1.272]
[1766071353306,0.552,2954.1,2953.3,3.8996]
[1766071353609,0.552,2954.1,2953.3,0.38996]
[1766071353815,1.11795635,2954.6,2953.4,0.58585928]
[1766071354072,0.552,2954.6,2953.7,2.6276]
[1766071354313,7.41060603,2955.0,2954.1,1.272]
[1766071354314,0.24399,2955.0,2954.1,1.272]
[1766071354475,0.554,2955.3,2954.2,1.272]
[1766071354680,0.46438023,2955.2,2954.2,1.272]
[1766071354898,4.40214466,2955.3,2954.2,1.272]
[1766071355105,0.81882208,2955.2,2954.2,1.272]
[1766071355343,0.81882208,2955.2,2954.2,3.8996]
[1766071355621,0.554,2955.3,2954.4,2.6276]
[1766071355818,0.554,2955.3,2954.7,1.272]
[1766071355819,0.002,2955.3,2954.7,1.272]
[1766071356139,2.4399,2955.6,2954.3,3.8996]
[1766071356427,2.4399,2954.9,2953.8,1.272]
[1766071356719,0.002,2954.9,2953.8,0.98839802]
[1766071356920,0.002,2954.9,2953.9,3.8996]
[1766071357092,0.002,2954.9,2953.9,2.6276]
[1766071357296,0.002,2954.9,2954.0,3.8996]
[1766071357847,0.002,2954.9,2953.8,0.552]
[1766071357848,2.4399,2954.8,2953.8,0.552]
[1766071358127,2.4399,2954.7,2953.8,0.552]
[1766071358312,3.55075184,2954.7,2953.8,0.552]
[1766071358725,2.4399,2954.6,2953.5,4.4526]
[1766071359224,5.92607488,2954.6,2953.5,4.4526]
[1766071359429,2.845404,2954.4,2953.5,0.553]
[1766071359724,2.4399,2954.0,2953.0,2.6276]
[1766071359930,2.4399,2954.0,2953.1,0.46438023]
[1766071360124,2.4399,2954.0,2952.9,0.553]
[1766071360125,2.4399,2954.0,2952.9,0.001]
[1766071360300,2.4399,2954.0,2953.0,3.8996]
[1766071360501,1.2446,2954.2,2953.0,3.8996]
[1766071360702,0.50510044,2954.1,2953.0,3.8996]
[1766071360894,2.94500044,2954.1,2953.0,3.8996]
[1766071361098,2.4399,2953.9,2952.9,0.001]
[1766071361322,3.6845,2953.6,2952.9,0.001]
[1766071361556,2.4399,2953.5,2952.9,0.001]
[1766071361729,2.80835,2953.4,2952.3,0.001]
[1766071361914,0.552,2953.3,2952.3,0.001]
[1766071362095,0.36845,2953.4,2951.5,3.67095732]
[1766071362096,1.2446,2952.9,2951.5,3.67095732]
[1766071362298,1.2446,2952.9,2951.8,1.272]
[1766071362299,2.4399,2952.8,2951.8,1.272]
[1766071362501,2.3953,2953.0,2951.8,3.7523]
[1766071362811,0.46438023,2953.3,2952.2,1.2334]
[1766071363008,2.85968023,2953.5,2952.4,3.7137]
[1766071363208,1.71338023,2953.7,2952.5,3.7137]
[1766071363409,0.552,2953.6,2952.5,3.7137]
[1766071363929,0.552,2953.6,2952.5,1.2334]
[1766071363930,0.405504,2953.4,2952.5,1.2334]
[1766071364113,2.3953,2953.2,2952.2,0.552]
[1766071364435,2.3953,2953.2,2952.2,0.77697802]
[1766071365137,2.3953,2953.2,2952.6,0.001]
[1766071365431,0.56595635,2953.8,2952.6,0.001]
[1766071365432,0.552,2953.9,2952.9,1.2334]
[1766071365641,0.50510044,2954.1,2953.1,1.2334]
[1766071365932,0.552,2954.3,2953.1,4.17413272]
[1766071366247,0.46358023,2954.2,2953.1,4.17413272]
[1766071366530,0.46358023,2954.2,2952.9,0.552]
[1766071366531,1.2465,2953.8,2952.9,0.552]
[1766071366733,0.405504,2954.1,2953.0,1.2334]
[1766071367031,0.405504,2953.9,2953.0,1.2334]
[1766071368032,2.3953,2954.0,2953.0,1.2334]
[1766071368213,2.3953,2953.9,2952.9,0.552]
[1766071368414,2.75948,2953.9,2952.9,0.552]
[1766071368740,1.01638023,2954.3,2953.1,3.7137]
[1766071368910,1.01638023,2954.3,2953.3,3.7137]
[1766071369114,2.3953,2954.4,2953.3,2.4803]
[1766071369314,0.552,2954.7,2953.6,2.4803]
[1766071369514,0.552,2954.7,2953.8,1.2334]
[1766071369727,1.01638023,2954.7,2953.8,1.2334]
[1766071370534,1.82071528,2954.7,2953.5,1.2334]
[1766071370732,1.82071528,2954.7,2953.5,3.7137]
[1766071370909,0.552,2954.7,2953.6,3.41955578]
[1766071371103,0.552,2954.7,2953.8,1.2334]
[1766071371332,0.002,2954.9,2953.9,1.81925354]
[1766071371633,0.002,2954.9,2954.0,3.7137]
[1766071371843,0.002,2954.9,2954.2,1.2334]
[1766071372026,1.2454,2955.7,2954.5,1.2334]
[1766071372230,0.002,2955.7,2954.7,3.7137]
[1766071372429,0.002,2955.7,2954.8,1.7854]
[1766071372741,0.002,2955.7,2954.8,2.24978023]
[1766071372947,0.002,2955.3,2955.0,3.38409475]
[1766071373113,0.002,2955.7,2954.9,4.65108825]
[1766071373311,0.002,2955.7,2954.2,3.38495647]
[1766071373312,1.2461,2955.6,2954.3,0.46438023]
[1766071373642,2.3953,2955.5,2954.3,0.46438023]
[1766071373841,0.407504,2955.7,2954.4,0.552]
[1766071374009,0.002,2955.7,2954.6,1.2334]
[1766071374346,0.002,2955.7,2954.6,5.86484565]
[1766071374559,0.34336802,2955.7,2954.7,4.61783094]
[1766071374712,0.002,2956.1,2954.9,10.15262781]
[1766071375044,0.002,2956.5,2955.5,1.2334]
[1766071375212,0.002,2956.5,2955.3,0.46438023]
[1766071375213,0.002,2956.5,2955.8,3.7137]
[1766071375406,0.002,2956.5,2955.3,0.46438023]
[1766071375742,2.49687612,2956.2,2954.9,2.4803]
[1766071375941,2.3953,2955.9,2955.0,0.551]
[1766071376235,0.70162964,2956.1,2955.0,1.7844]
[1766071376556,0.29612564,2956.1,2955.1,3.7137]
[1766071377129,0.29612564,2956.1,2955.1,2.4803]
[1766071377333,0.29612564,2956.1,2955.2,1.2334]
[1766071377543,0.002,2956.5,2955.5,3.7137]
[1766071377721,0.002,2956.5,2955.1,3.38392448]
[1766071377722,0.002,2956.5,2955.7,3.7137]
[1766071377930,0.46438023,2956.4,2955.8,0.551]
[1766071378114,5.77968047,2956.5,2955.2,2.4803]
[1766071378115,2.86168023,2956.5,2955.2,2.4803]
[1766071378321,6.24408262,2956.5,2955.6,0.551]
[1766071378530,1.55138854,2956.4,2955.6,0.551]
[1766071379013,1.55138854,2956.4,2955.3,0.551]
[1766071379014,2.3953,2956.2,2955.3,0.551]
[1766071379214,2.85968023,2956.2,2955.3,0.551]
[1766071379936,0.46438023,2956.3,2955.3,0.551]
[1766071380346,1.08880012,2956.3,2955.3,1.7844]
[1766071380856,0.62441989,2956.3,2955.4,3.7137]
[1766071381155,2.802804,2956.5,2955.3,0.551]
[1766071381355,3.637,2956.4,2955.4,0.551]
[1766071381564,3.637,2956.4,2955.4,1.7844]
[1766071381565,2.3953,2956.4,2955.4,1.7844]
[1766071381722,2.3953,2956.4,2955.1,2.4803]
[1766071381723,2.9463,2956.4,2955.1,2.4803]
[1766071381923,1.34387612,2956.3,2955.1,2.4803]
[1766071382142,2.58478761,2956.2,2955.2,1.7844]
[1766071382335,0.18948761,2956.2,2955.2,4.2647]
[1766071382529,0.002,2956.3,2955.3,1.2334]
[1766071382740,0.002,2956.3,2955.4,1.2334]
[1766071382931,0.002,2956.3,2955.4,3.7137]
[1766071383620,0.002,2956.3,2954.9,0.001]
[1766071383827,2.5047,2956.1,2955.0,0.551]
[1766071384023,0.002,2956.3,2955.6,2.4684]
[1766071384244,0.002,2956.3,2955.8,1.2597]
[1766071384620,0.002,2956.3,2955.7,3.0194]
[1766071384951,0.002,2956.3,2955.4,1.2597]
[1766071385164,0.002,2956.3,2955.8,0.551]
[1766071385462,0.002,2956.3,2955.8,1.8107]
[1766071385680,3.48283389,2957.5,2956.0,2.4684]
[1766071385829,2.5047,2958.7,2956.9,1.2597]
[1766071386154,1.30777612,2958.8,2957.3,3.7281]
[1766071386155,0.10157612,2958.2,2957.3,3.7281]
[1766071386359,0.10157612,2957.6,2957.1,0.551]
[1766071386523,0.10157612,2957.3,2956.5,1.2597]
[1766071386723,2.60627612,2957.3,2956.5,0.551]
[1766071387256,0.10157612,2957.5,2956.5,0.551]
[1766071387451,0.10157612,2957.5,2956.6,0.03382263]
[1766071387654,2.5047,2957.7,2956.7,1.72408023]
[1766071387866,1.71328012,2957.8,2955.8,2.4684]
[1766071387867,3.7109,2956.9,2955.8,2.4684]
[1766071388074,1.01538023,2957.1,2955.8,0.551]
[1766071388274,0.10157612,2957.0,2955.9,3.7281]
[1766071388575,0.6,2957.9,2956.3,8.71909737]
[1766071388749,0.6,2957.9,2956.8,2.4684]
[1766071388954,0.6,2957.9,2957.2,2.4684]
[1766071389337,0.6,2957.9,2957.3,0.551]
[1766071389539,0.6,2957.9,2957.4,1.2597]
[1766071389751,0.10157612,2958.7,2957.5,1.2597]
[1766071389988,3.0557,2958.8,2957.4,2.4684]
[1766071389989,0.10157612,2958.6,2957.4,2.4684]
[1766071390137,0.10157612,2958.4,2957.6,3.7281]
[1766071390336,1.67058023,2958.5,2957.5,0.551]
[1766071390570,0.10157612,2958.2,2957.2,3.7281]
[1766071390774,0.10157612,2958.4,2957.4,0.551]
[1766071390970,0.10077612,2958.4,2957.4,0.551]
[1766071391273,1.77215635,2958.5,2957.4,4.2791]
[1766071391445,1.77215635,2958.5,2957.5,3.7281]
[1766071391854,0.10157612,2958.3,2957.5,3.7281]
[1766071392074,0.002,2958.1,2957.5,3.7281]
[1766071392571,0.002,2958.1,2957.5,4.2791]
[1766071393992,0.002,2958.1,2956.9,3.9233904]
[1766071393993,0.10157612,2958.0,2956.9,3.9233904]
[1766071394273,0.10157612,2957.8,2957.0,0.551]
[1766071394478,0.10157612,2957.8,2956.7,0.46438023]
[1766071394664,0.10157612,2958.2,2956.7,0.46438023]
[1766071394665,3.97809241,2960.3,2958.7,1.2091]
[1766071394852,3.97809241,2960.3,2959.0,3.636]
[1766071394853,0.46640969,2960.2,2959.0,3.636]
[1766071395056,0.46640969,2960.2,2959.0,2.89128023]
[1766071395057,0.64303055,2960.2,2959.0,2.89128023]
[1766071395263,0.46640969,2960.2,2959.0,4.10038023]
[1766071395450,0.46640969,2960.2,2959.1,2.4269]
[1766071395652,0.6,2960.3,2959.2,1.2091]
[1766071395856,0.6,2960.3,2959.4,3.636]
[1766071396155,0.6,2960.3,2959.5,0.46438023]
[1766071396365,0.6,2960.3,2959.6,0.551]
[1766071396564,0.6,2960.3,2959.2,1.7601]
[1766071396565,4.2884,2960.3,2959.2,1.7601]
[1766071396756,0.42884,2960.2,2959.3,3.636]
[1766071396958,0.6,2960.3,2959.3,3.636]
[1766071397179,3.6884,2960.2,2959.2,0.551]
[1766071397477,2.3779,2959.9,2959.0,0.551]
[1766071397648,3.6884,2959.9,2959.0,0.551]
[1766071397853,4.15278023,2960.2,2959.1,3.636]
[1766071398054,1.15088968,2960.1,2959.1,3.636]
[1766071399683,1.15088968,2960.1,2959.1,4.187]
[1766071399853,7.53299746,2960.2,2959.1,4.187]
[1766071400050,7.53295451,2960.2,2959.1,4.187]
[1766071400451,10.91112879,2960.2,2959.1,4.187]
[1766071400684,0.551,2960.1,2959.1,3.636]
[1766071400889,3.6884,2959.3,2958.1,0.551]
[1766071401052,3.6884,2959.3,2956.6,0.7870945]
[1766071401053,1.3105,2959.7,2958.3,2.4269]
[1766071401258,0.551,2959.6,2958.7,2.4269]